bitfinex/quotes_SOLUSD_20250829
["timestamp","ask_amount","ask_price","bid_price","bid_amount"]
[1756454622322,0.14216157,209.6,209.58,0.66]
[1756454622521,19.25022461,209.6,209.59,0.66]
[1756454622817,0.14216157,209.64,209.59,0.66]
[1756454623130,19.25022461,209.64,209.59,0.66]
[1756454623332,0.14216157,209.64,209.59,0.66]
[1756454623707,4.91236686,209.64,209.59,0.66]
[1756454623900,4.91236686,209.64,209.6,19.10806304]
[1756454624226,4.91236686,209.64,209.61,0.66]
[1756454624431,19.10806304,209.7,209.63,19.10806304]
[1756454624606,19.10806304,209.7,209.64,19.76806304]
[1756454624804,19.10806304,209.7,209.65,0.66]
[1756454625101,26.0,209.72,209.66,0.66]
[1756454625308,16.68695249,209.75,209.66,0.66]
[1756454625309,13.59559401,209.74,209.67,19.10806304]
[1756454625499,4.76758045,209.75,209.69,19.10806304]
[1756454625500,23.87564349,209.75,209.69,19.10806304]
[1756454625701,19.10806304,209.74,209.7,0.66]
[1756454625931,18.36294717,209.76,209.71,0.66]
[1756454626106,19.10806304,209.75,209.71,0.66]
[1756454626498,4.76735316,209.76,209.72,0.66]
[1756454627018,4.76735316,209.76,209.73,0.66]
[1756454627730,23.8754162,209.76,209.73,0.66]
[1756454628226,0.14216157,209.75,209.73,0.66]
[1756454628622,4.76780776,209.74,209.73,0.66]
[1756454628932,4.90996933,209.74,209.73,0.66]
[1756454629909,0.14216157,209.73,209.7,19.76806304]
[1756454630111,0.14216157,209.73,209.71,0.66]
[1756454630931,4.91035606,209.73,209.71,0.66]
[1756454631432,14.337945,209.79,209.72,19.76806304]
[1756454631606,14.337945,209.79,209.73,0.66]
[1756454631607,4.76667143,209.79,209.73,0.66]
[1756454631936,4.76553564,209.84,209.77,19.10806304]
[1756454632108,23.87359868,209.84,209.78,19.76806304]
[1756454632309,14.33589,209.82,209.78,19.76806304]
[1756454632505,0.14216157,209.81,209.79,0.66]
[1756454632702,4.76598989,209.82,209.78,19.10806304]
[1756454632906,26.0,209.81,209.79,0.66]
[1756454633305,0.14216157,209.8,209.79,0.66]
[1756454633521,0.14216157,209.8,209.77,19.10806304]
[1756454633752,19.25022461,209.8,209.75,0.66]
[1756454633909,19.25022461,209.8,209.76,0.66]
[1756454634104,0.14216157,209.8,209.73,19.10806304]
[1756454634345,0.14216157,209.8,209.77,0.66]
[1756454634828,0.14216157,209.78,209.77,0.66]
[1756454635030,0.14216157,209.78,209.74,19.10806304]
[1756454635346,0.14216157,209.78,209.76,0.66]
[1756454636336,4.76667143,209.79,209.77,0.66]
[1756454636739,4.76712589,209.77,209.74,19.10806304]
[1756454636912,4.76712589,209.77,209.73,19.10806304]
[1756454637117,4.76712589,209.77,209.74,19.10806304]
[1756454637342,4.90907281,209.78,209.74,19.10806304]
[1756454637512,4.90907281,209.78,209.75,0.66]
[1756454637727,4.90907281,209.78,209.73,19.10806304]
[1756454637932,24.01713585,209.78,209.74,0.66]
[1756454638830,0.14216157,209.78,209.74,0.66]
[1756454639241,19.10806304,209.79,209.75,0.66]
[1756454639641,0.14216157,209.77,209.73,19.10806304]
[1756454639951,0.14216157,209.77,209.74,0.66]
[1756454640732,0.06,209.8,209.76,19.10806304]
[1756454641050,0.20216157,209.8,209.77,0.71]
[1756454641233,0.20216157,209.8,209.75,19.10806304]
[1756454641548,0.20216157,209.8,209.77,0.71]
[1756454641935,0.20216157,209.8,209.78,0.71]
[1756454642938,0.14216157,209.78,209.75,19.81806304]
[1756454643147,0.14216157,209.78,209.76,0.71]
[1756454643352,0.14216157,209.78,209.77,0.71]
[1756454643849,0.14216157,209.78,209.74,19.81806304]
[1756454644150,4.91216157,209.78,209.75,0.71]
[1756454644340,0.14216157,209.78,209.75,0.71]
[1756454644539,0.14216157,209.78,209.69,0.03]
[1756454644744,0.14216157,209.74,209.69,19.13806304]
[1756454644955,0.14216157,209.72,209.69,0.74]
[1756454645132,0.14216157,209.72,209.69,0.03]
[1756454645330,45.25022461,209.7,209.69,0.03]
[1756454646155,0.14216157,209.69,209.66,0.03]
[1756454646331,0.14216157,209.67,209.66,0.03]
[1756454646528,33.49581862,209.67,209.66,0.03]
[1756454647036,38.26521815,209.67,209.66,0.03]
[1756454647362,39.59559401,209.65,209.64,0.03]
[1756454647571,58.84581862,209.65,209.64,0.03]
[1756454647726,59.49581862,209.65,209.64,1e-08]
[1756454648460,13.59559401,209.6,209.57,0.2]
[1756454648759,32.84581862,209.58,209.57,0.2]
[1756454648931,37.61726627,209.58,209.57,1e-08]
[1756454649135,38.26726627,209.58,209.57,1e-08]
[1756454649545,52.61961627,209.58,209.57,1e-08]
[1756454650266,33.51155323,209.58,209.57,1e-08]
[1756454650551,92.13961627,209.58,209.57,1e-08]
[1756454652372,32.86155323,209.58,209.57,1e-08]
[1756454652548,51.96961627,209.58,209.57,1e-08]
[1756454653951,33.51155323,209.58,209.57,1e-08]
[1756454654253,32.86155323,209.58,209.57,1e-08]
[1756454654425,12.57715192,209.61,209.57,1e-08]
[1756454654426,4.77118998,209.6,209.57,0.71000001]
[1756454654630,23.87925302,209.6,209.57,0.71000001]
[1756454654937,25.79253402,209.6,209.57,0.71000001]
[1756454655143,25.79253402,209.6,209.57,1e-08]
[1756454655345,0.14216157,209.59,209.57,0.71000001]
[1756454655664,25.79253402,209.6,209.57,1e-08]
[1756454656253,6.68447098,209.6,209.57,0.71000001]
[1756454656474,0.14216157,209.59,209.57,0.71000001]
[1756454656764,4.77118998,209.6,209.57,0.71000001]
[1756454657158,0.14216157,209.59,209.57,0.71000001]
[1756454657733,4.91358983,209.59,209.57,0.71000001]
[1756454660156,4.91358983,209.59,209.57,1e-08]
[1756454664163,4.91247825,209.63,209.58,0.71]
[1756454664370,4.77031668,209.63,209.59,19.10806304]
[1756454664667,19.10806304,209.6,209.57,1e-08]
[1756454664851,0.14216157,209.59,209.57,1e-08]
[1756454665061,19.25022461,209.59,209.57,1e-08]
[1756454665254,19.10806304,209.58,209.57,1e-08]
[1756454665570,0.14216157,209.59,209.58,0.71]
[1756454665766,4.91338157,209.59,209.58,0.71]
[1756454665973,24.02144461,209.59,209.57,1e-08]
[1756454666273,59.49581862,209.58,209.57,1e-08]
[1756454666771,100.92946462,209.58,209.57,1e-08]
[1756454667649,105.70091227,209.58,209.57,1e-08]
[1756454668366,79.70091227,209.58,209.57,1e-08]
[1756454668974,39.73775558,209.55,209.54,1e-08]
[1756454669277,98.36581862,209.55,209.54,1e-08]
[1756454669576,0.14216157,209.5,209.48,0.2]
[1756454669788,4.91565911,209.49,209.48,0.2]
[1756454671171,18.51125312,209.49,209.48,0.2]
[1756454671375,37.61931616,209.49,209.48,0.2]
[1756454671778,38.30931616,209.49,209.48,1e-08]
[1756454672583,39.59559401,209.45,209.38,0.66]
[1756454672755,26.0,209.46,209.38,0.66]
[1756454672756,19.25022461,209.39,209.38,0.66]
[1756454672957,0.14216157,209.37,209.36,0.2]
[1756454673276,32.84581862,209.37,209.36,0.2]
[1756454673668,37.62205208,209.37,209.36,0.2]
[1756454673873,32.84581862,209.33,209.32,0.03]
[1756454675262,72.36581862,209.33,209.32,0.03]
[1756454675683,13.73775558,209.32,209.29,0.03]
[1756454675871,32.84581862,209.3,209.29,0.03]
[1756454676478,47.21604362,209.3,209.29,0.03]
[1756454677381,26.14216157,209.28,209.27,0.03]
[1756454677563,84.77022461,209.28,209.27,0.03]
[1756454677879,4.92044903,209.28,209.27,0.69]
[1756454678756,38.31410608,209.28,209.27,0.03]
[1756454678959,63.62410608,209.28,209.27,0.03]
[1756454680086,13.73775558,209.27,209.22,0.66]
[1756454680284,0.14216157,209.24,209.22,0.66]
[1756454680591,19.25022461,209.24,209.22,0.66]
[1756454680768,0.14216157,209.24,209.23,0.66]
[1756454681571,14.370225,209.3,209.23,19.76806304]
[1756454681771,4.77729449,209.33,209.27,19.10806304]
[1756454682066,0.14216157,209.32,209.28,0.66]
[1756454682287,23.88535753,209.33,209.28,0.66]
[1756454683185,0.14216157,209.32,209.28,0.66]
[1756454683560,14.366784,209.36,209.31,19.10806304]
[1756454683764,19.10806304,209.4,209.34,19.10806304]
[1756454683959,4.77557725,209.4,209.35,0.66]
[1756454684190,4.77557725,209.4,209.35,19.10806304]
[1756454684485,23.88337422,209.42,209.36,19.76806304]
[1756454684783,19.10806304,209.41,209.37,0.66]
[1756454685281,19.10806304,209.4,209.37,0.66]
[1756454685884,4.77577725,209.39,209.37,0.66]
[1756454686264,0.14216157,209.38,209.37,0.66]
[1756454686464,0.14216157,209.38,209.29,26.0]
[1756454686684,0.14216157,209.38,209.34,19.76806304]
[1756454686880,0.14216157,209.38,209.35,19.10806304]
[1756454687062,0.14216157,209.38,209.35,19.76806304]
[1756454687265,0.14216157,209.38,209.36,0.66]
[1756454687479,0.14216157,209.38,209.37,0.66]
[1756454688192,4.91816691,209.38,209.37,0.66]
[1756454689085,4.91816691,209.38,209.35,0.66]
[1756454689390,4.91816691,209.38,209.36,0.66]
[1756454690786,4.91793475,209.4,209.37,0.66]
[1756454691098,4.91793475,209.4,209.35,19.10806304]
[1756454691278,4.91793475,209.4,209.36,0.66]
[1756454694495,16.85680772,209.4,209.34,0.03]
[1756454694694,16.85680772,209.4,209.34,19.13806304]
[1756454694695,35.96487076,209.4,209.34,19.13806304]
[1756454694881,0.14216157,209.38,209.34,0.03]
[1756454695394,0.83216157,209.38,209.34,0.03]
[1756454695698,0.83216157,209.38,209.35,19.10806304]
[1756454695699,4.77623346,209.37,209.35,19.10806304]
[1756454695889,4.77623346,209.37,209.34,19.13806304]
[1756454696092,26.83216157,209.36,209.34,0.03]
[1756454696481,26.14216157,209.36,209.34,0.03]
[1756454696690,28.05764057,209.36,209.34,0.03]
[1756454697490,4.77668975,209.35,209.34,19.13806304]
[1756454698097,1.915479,209.36,209.34,19.13806304]
[1756454698287,39.59559401,209.39,209.35,19.76806304]
[1756454698482,26.0,209.39,209.36,19.10806304]
[1756454698700,30.3084199,209.42,209.38,19.10806304]
[1756454698880,30.3084199,209.42,209.39,19.10806304]
[1756454699095,13.595594,209.4,209.38,19.10806304]
[1756454699608,30.3084199,209.42,209.37,19.10806304]
[1756454699797,45.3610769,209.42,209.35,0.66]
[1756454699976,44.6710769,209.42,209.38,19.10806304]
[1756454700181,32.73334412,209.42,209.38,19.10806304]
[1756454701779,20.0,209.51,209.34,0.03]
[1756454701780,13.59559401,209.47,209.41,19.10806304]
[1756454701999,26.0,209.45,209.44,19.10806304]
[1756454702195,13.59559401,209.46,209.41,0.7]
[1756454702413,13.59559401,209.46,209.45,19.10806304]
[1756454702584,13.59559401,209.46,209.44,19.10806304]
[1756454702905,39.59559401,209.47,209.44,19.10806304]
[1756454703411,39.59559401,209.47,209.43,19.10806304]
[1756454703779,4.77418122,209.46,209.43,19.10806304]
[1756454704289,13.59559401,209.42,209.34,0.73]
[1756454704483,26.0,209.39,209.34,0.03]
[1756454704689,13.59559401,209.38,209.34,0.03]
[1756454704905,14.28559401,209.38,209.34,0.03]
[1756454705104,16.20098201,209.38,209.34,0.03]
[1756454705411,13.59559401,209.36,209.34,0.03]
[1756454705709,18.37228376,209.35,209.34,0.03]
[1756454706592,38.1703468,209.35,209.34,0.03]
[1756454706788,38.1703468,209.35,209.31,0.03]
[1756454706789,13.59559401,209.34,209.31,0.03]
[1756454707124,19.10806304,209.32,209.31,0.03]
[1756454707406,0.69,209.33,209.31,0.03]
[1756454707608,14.28559401,209.32,209.29,0.03]
[1756454707909,13.59559401,209.3,209.29,0.03]
[1756454708299,39.59559401,209.28,209.18,0.7]
[1756454708614,39.59559401,209.25,209.24,0.03]
[1756454709109,59.39365705,209.25,209.22,0.03]
[1756454709316,19.10806304,209.23,209.22,0.03]
[1756454709802,24.57749237,209.23,209.22,0.03]
[1756454710111,13.59559401,209.19,209.16,19.10806304]
[1756454710424,13.59559401,209.17,209.13,0.2]
[1756454710586,32.70365705,209.16,209.13,0.2]
[1756454710790,33.39365705,209.16,209.13,0.2]
[1756454711098,33.39365705,209.16,209.15,1e-08]
[1756454711289,72.85365705,209.16,209.15,1e-08]
[1756454711719,77.63468592,209.16,209.15,1e-08]
[1756454712506,13.59559401,209.14,209.13,1e-08]
[1756454712813,39.59559401,209.13,209.12,1e-08]
[1756454713016,98.85365705,209.13,209.12,1e-08]
[1756454713794,103.63537177,209.13,209.12,1e-08]
[1756454714008,77.63537177,209.13,209.11,1e-08]
[1756454714313,32.70365705,209.12,209.11,1e-08]
[1756454714822,33.39365705,209.12,209.11,1e-08]
[1756454715914,101.61045888,209.12,209.02,0.7]
[1756454716103,19.10806304,209.03,209.02,0.7]
[1756454716494,19.10806304,209.03,208.93,4.78625696]
[1756454716718,19.10806304,209.03,208.9,26.0]
[1756454716899,19.10806304,209.01,208.97,0.7]
[1756454717423,19.10806304,209.01,209.0,12.7]
[1756454717794,23.89252311,209.01,209.0,12.7]
[1756454718017,37.48811712,209.01,209.0,12.0]
[1756454718215,37.48811712,209.01,209.0,12.7]
[1756454718417,19.07005408,209.01,209.0,12.0]
[1756454718607,38.17811712,209.01,209.0,12.0]
[1756454719334,19.07005408,209.01,209.0,12.0]
[1756454719502,39.59559401,208.97,208.89,0.7]
[1756454719702,13.59559401,208.93,208.89,0.7]
[1756454719901,39.48,208.98,208.89,0.7]
[1756454720210,19.10806304,208.98,208.89,5.48718674]
[1756454720398,19.10806304,208.98,208.92,19.10806304]
[1756454720601,19.10806304,208.98,208.93,0.7]
[1756454720813,13.59559401,208.99,208.93,19.80806304]
[1756454721016,19.10806304,209.0,208.94,19.80806304]
[1756454721218,13.59559401,209.02,208.95,19.80806304]
[1756454721524,14.390215,209.06,209.01,19.10806304]
[1756454721695,13.59559401,209.08,209.03,19.10806304]
[1756454721900,19.10806304,209.09,209.04,0.7]
[1756454722197,19.10806304,209.09,209.05,0.7]
[1756454722401,26.0,209.08,209.06,0.7]
[1756454722599,45.10806304,209.08,209.06,0.7]
[1756454722819,26.0,209.08,209.06,0.7]
[1756454723028,19.10806304,209.09,209.06,0.7]
[1756454723199,19.10806304,209.09,208.92,39.48]
[1756454723200,13.59559401,209.06,208.99,0.7]
[1756454723404,32.70365705,209.03,208.99,0.7]
[1756454723613,32.70365705,209.03,209.0,0.7]
[1756454723804,13.59559401,209.03,209.0,0.7]
[1756454724000,13.59559401,209.01,208.97,0.7]
[1756454724535,13.59559401,209.01,208.89,51.44802144]
[1756454724536,19.10806304,208.98,208.94,0.7]
[1756454724707,19.10806304,208.97,208.94,0.7]
[1756454724907,13.59559401,208.97,208.94,0.7]
[1756454725120,32.70365705,208.97,208.91,19.10806304]
[1756454725317,32.70365705,208.97,208.95,0.7]
[1756454725825,19.10806304,208.97,208.96,0.7]
[1756454726027,19.10806304,208.97,208.93,0.7]
[1756454726214,19.10806304,208.97,208.94,0.7]
[1756454727327,39.59559401,209.0,208.95,0.7]
[1756454727644,13.59559401,209.04,208.98,19.10806304]
[1756454727931,13.59559401,209.04,208.99,19.80806304]
[1756454728125,30.78287024,209.08,209.0,19.80806304]
[1756454728330,19.10806304,209.09,209.02,19.10806304]
[1756454728510,19.10806304,209.09,209.03,0.7]
[1756454728705,13.59559401,209.08,209.03,0.7]
[1756454728954,0.06,209.11,209.06,19.10806304]
[1756454729231,0.06,209.11,209.1,19.10806304]
[1756454729645,0.06,209.11,209.1,19.80806304]
[1756454730124,0.06,209.11,209.1,24.5904638]
[1756454731643,0.06,209.11,209.1,19.80806304]
[1756454732636,0.06,209.11,209.1,24.5904638]
[1756454733433,0.06,209.11,209.1,5.48240076]
[1756454733631,0.06,209.11,209.04,11.95888639]
[1756454733632,0.06,209.11,209.07,26.68]
[1756454733833,0.06,209.11,209.08,0.68]
[1756454734033,0.06,209.11,209.08,19.78806304]
[1756454734440,0.06,209.11,209.05,0.68]
[1756454734649,19.16806304,209.11,209.02,0.68]
[1756454734820,19.10806304,209.09,209.03,19.10806304]
[1756454735145,32.70365705,209.08,209.02,19.10806304]
[1756454735531,19.10806304,209.07,209.01,19.10806304]
[1756454735860,19.10806304,209.06,209.0,0.68]
[1756454736156,19.10806304,209.06,209.0,19.78806304]
[1756454736452,37.48652141,209.08,209.02,19.10806304]
[1756454736655,19.10806304,209.07,209.01,19.10806304]
[1756454737553,18.37845837,209.08,209.02,19.10806304]
[1756454737740,37.48652141,209.08,209.02,19.10806304]
[1756454738143,26.0,209.08,209.04,19.10806304]
[1756454738340,13.65559401,209.11,209.06,19.10806304]
[1756454738541,18.43777672,209.11,209.07,0.68]
[1756454738753,13.65559401,209.11,209.07,0.68]
[1756454739143,18.43783422,209.11,209.07,0.68]
[1756454739342,13.65559401,209.11,209.06,19.10806304]
[1756454739553,13.65559401,209.11,209.06,19.78806304]
[1756454740360,0.06,209.11,209.1,19.10806304]
[1756454740656,0.06,209.11,209.1,19.78806304]
[1756454740862,0.06,209.14,209.1,19.78806304]
[1756454741162,0.06,209.16,209.13,26.0]
[1756454741469,19.82806304,209.28,209.15,19.10806304]
[1756454741755,19.10806304,209.3,209.17,26.0]
[1756454741932,19.10806304,209.29,209.23,19.10806304]
[1756454742334,23.8863505,209.28,209.22,19.10806304]
[1756454742555,23.8863505,209.28,209.21,0.68]
[1756454743062,23.8863505,209.28,209.23,19.10806304]
[1756454743256,14.31559401,209.27,209.19,44.24031847]
[1756454743558,13.59559401,209.27,209.19,44.24031847]
[1756454743755,13.59559401,209.27,209.22,19.10806304]
[1756454744357,18.37433532,209.27,209.22,19.10806304]
[1756454744862,19.09433532,209.27,209.22,19.10806304]
[1756454745036,18.37433532,209.27,209.22,19.10806304]
[1756454745438,18.37433532,209.27,209.23,29.45082386]
[1756454745738,18.37433532,209.27,209.22,29.45082386]
[1756454746247,47.82515918,209.27,209.21,29.45082386]
[1756454746444,18.37433532,209.27,209.21,29.45082386]
[1756454746636,18.37433532,209.27,209.23,29.45082386]
[1756454748145,18.37433532,209.27,209.24,0.68]
[1756454748553,0.06,209.28,209.26,29.45082386]
[1756454749134,0.06,209.28,209.25,29.45082386]
[1756454749542,0.06,209.28,209.22,0.68]
[1756454749749,0.06,209.28,209.23,68.89082386]
[1756454750075,0.06,209.28,209.23,69.57082386]
[1756454750240,0.06,209.28,209.23,40.12]
[1756454750443,0.06,209.28,209.24,29.45082386]
[1756454751537,0.06,209.28,209.23,39.42]
[1756454751738,0.06,209.28,209.25,29.45082386]
[1756454752361,0.06,209.28,209.25,30.13082386]
[1756454752554,0.06,209.28,209.26,29.45082386]
[1756454753068,0.06,209.28,209.26,30.13082386]
[1756454753870,0.06,209.28,209.26,29.45082386]
[1756454754051,0.06,209.28,209.25,29.45082386]
[1756454754438,0.06,209.28,209.25,30.13082386]
[1756454756060,0.06,209.28,209.24,39.42]
[1756454756746,4.83828746,209.28,209.24,68.87082386]
[1756454758774,4.83828746,209.28,209.24,68.85082386]
[1756454758958,4.83828746,209.28,209.24,39.4]
[1756454759547,4.83828746,209.28,209.25,29.45082386]
[1756454759747,4.83828746,209.28,209.25,30.13082386]
[1756454760562,4.83828746,209.28,209.24,39.4]
[1756454760750,4.83828746,209.28,209.24,40.12]
[1756454760953,4.83828746,209.28,209.24,69.57082386]
[1756454761178,0.06,209.28,209.25,29.45082386]
[1756454761394,0.06,209.28,209.27,29.45082386]
[1756454761602,0.1,209.32,209.27,34.22933965]
[1756454761885,4.77558177,209.4,209.31,29.45082386]
[1756454762084,4.83531925,209.42,209.37,29.45082386]
[1756454762253,4.83531925,209.42,209.32,0.72]
[1756454762254,29.45082386,209.38,209.32,0.72]
[1756454762457,29.45082386,209.39,209.35,39.4]
[1756454762688,13.59559401,209.4,209.33,68.85082386]
[1756454762859,29.45082386,209.39,209.33,68.85082386]
[1756454763173,29.45082386,209.39,209.32,0.72]
[1756454763174,13.59559401,209.37,209.34,39.4]
[1756454763582,4.77646159,209.36,209.34,39.4]
[1756454764971,43.04641787,209.35,209.28,0.72]
[1756454765171,0.06,209.32,209.28,40.1]
[1756454765363,0.06,209.32,209.29,0.72]
[1756454766261,13.65559401,209.32,209.27,0.72]
[1756454766467,32.80739971,209.29,209.21,0.72]
[1756454766791,19.2118057,209.28,209.23,19.2118057]
[1756454766988,19.2118057,209.28,209.23,0.72]
[1756454767570,4.77851579,209.27,209.23,0.72]
[1756454767764,19.2118057,209.25,209.19,0.72]
[1756454768072,13.59559401,209.3,209.24,19.2118057]
[1756454768280,32.80739971,209.3,209.24,19.9318057]
[1756454768591,19.2118057,209.3,209.24,19.9318057]
[1756454769085,37.58501615,209.31,209.25,19.2118057]
[1756454769283,19.2118057,209.3,209.24,64.09098007]
[1756454770590,0.06,209.32,209.29,19.2118057]
[1756454770891,0.06,209.32,209.3,0.72]
[1756454771098,0.06,209.32,209.3,24.70963015]
[1756454771268,0.06,209.32,209.31,19.9318057]
[1756454771600,0.06,209.35,209.31,19.9318057]
[1756454771772,0.06,209.35,209.3,16.72240161]
[1756454771773,0.06,209.35,209.34,19.2118057]
[1756454772163,0.06,209.35,209.34,19.9318057]
[1756454772998,0.06,209.42,209.34,59.2918057]
[1756454773198,0.06,209.42,209.35,0.72]
[1756454773396,13.59559401,209.39,209.3,0.72]
[1756454773615,19.2118057,209.37,209.31,43.9118057]
[1756454774200,19.2118057,209.37,209.31,19.2118057]
[1756454774404,13.59559401,209.37,209.31,19.2118057]
[1756454774622,23.98826729,209.36,209.31,39.36]
[1756454774801,24.68826729,209.36,209.31,39.36]
[1756454775618,4.77646159,209.36,209.31,40.08]
[1756454775817,23.98826729,209.36,209.31,40.08]
[1756454776119,23.98826729,209.36,209.31,39.36]
[1756454776493,4.77646159,209.36,209.31,59.2918057]
[1756454777017,24.68826729,209.36,209.31,40.08]
[1756454777322,5.47646159,209.36,209.31,59.2918057]
[1756454777514,4.77646159,209.36,209.31,59.2918057]
[1756454777718,11.93919845,209.4,209.34,19.2118057]
[1756454777719,26.0,209.4,209.34,19.2118057]
[1756454778021,26.0,209.4,209.35,19.2118057]
[1756454778417,26.0,209.4,209.36,19.9318057]
[1756454778606,13.65559401,209.42,209.37,19.9318057]
[1756454778796,13.65559401,209.42,209.38,19.9318057]
[1756454778998,13.65559401,209.42,209.38,0.72]
[1756454779196,13.65559401,209.42,209.38,19.9318057]
[1756454779614,13.65559401,209.42,209.41,19.2118057]
[1756454779615,0.06,209.42,209.41,19.2118057]
[1756454779818,0.06,209.42,209.41,19.9318057]
[1756454780593,0.06,209.42,209.41,24.70712684]
[1756454780828,0.06,209.45,209.44,19.2118057]
[1756454781301,0.06,209.45,209.44,19.9318057]
[1756454781501,0.06,209.45,209.4,0.72]
[1756454781697,0.06,209.45,209.41,0.72]
[1756454781998,0.06,209.45,209.44,19.2118057]
[1756454782323,0.06,209.45,209.44,58.5518057]
[1756454782498,0.06,209.45,209.44,59.2718057]
[1756454783223,0.06,209.45,209.44,59.2518057]
[1756454783919,0.06,209.45,209.44,64.02644282]
[1756454785797,0.06,209.45,209.44,40.04]
[1756454785996,0.06,209.45,209.44,59.2518057]
[1756454787330,0.06,209.45,209.44,64.02644282]
[1756454788104,0.06,209.45,209.44,59.2518057]
[1756454788304,0.06,209.45,209.38,0.72]
[1756454788531,19.2118057,209.43,209.32,4.77737435]
[1756454788711,13.59559401,209.39,209.3,0.03]
[1756454788904,19.9118057,209.38,209.32,19.2118057]
[1756454789414,0.7,209.38,209.32,19.2118057]
[1756454789614,0.7,209.38,209.33,39.3]
[1756454790014,5.47643438,209.37,209.33,39.3]
[1756454790528,0.67,209.36,209.33,39.3]
[1756454790898,19.8818057,209.36,209.33,39.3]
[1756454791102,0.67,209.35,209.33,39.3]
[1756454791302,19.8818057,209.35,209.31,39.3]
[1756454791525,19.8818057,209.34,209.3,39.33]
[1756454791912,4.77714613,209.33,209.3,39.33]
[1756454792511,13.59559401,209.37,209.32,19.2118057]
[1756454792721,33.47739971,209.37,209.32,19.2118057]
[1756454792926,19.2118057,209.35,209.3,39.33]
[1756454793220,19.8818057,209.35,209.3,39.33]
[1756454793628,0.67,209.35,209.3,58.5418057]
[1756454794025,4.77691793,209.34,209.3,58.5418057]
[1756454794232,0.67,209.33,209.3,0.03]
[1756454794415,13.59559401,209.32,209.3,0.03]
[1756454794603,32.80739971,209.31,209.3,0.03]
[1756454794802,33.47739971,209.31,209.3,0.03]
[1756454796219,38.2550023,209.31,209.3,0.03]
[1756454796531,19.0431966,209.31,209.3,0.03]
[1756454796729,38.2550023,209.31,209.3,0.03]
[1756454798927,26.0,209.28,209.27,0.03]
[1756454799239,45.2118057,209.28,209.27,0.03]
[1756454799439,45.8818057,209.28,209.27,0.03]
[1756454800231,26.67,209.28,209.27,0.03]
[1756454800542,45.8818057,209.28,209.27,0.03]
[1756454800735,50.66009316,209.28,209.27,0.03]
[1756454800914,49.99009316,209.28,209.27,0.03]
[1756454801825,50.66009316,209.28,209.27,0.03]
[1756454803330,49.99009316,209.28,209.27,0.03]
[1756454804431,30.77828746,209.28,209.27,0.03]
[1756454804614,49.99009316,209.28,209.27,0.03]
[1756454805018,58.80739971,209.28,209.27,0.03]
[1756454805246,63.58568717,209.28,209.27,0.03]
[1756454805540,64.25568717,209.28,209.27,0.03]
[1756454806730,0.67,209.35,209.27,0.73]
[1756454806944,13.59559401,209.3,209.27,0.73]
[1756454807142,19.2118057,209.33,209.28,0.7]
[1756454807351,13.59559401,209.33,209.28,19.9118057]
[1756454807520,0.67,209.38,209.29,0.7]
[1756454807724,13.59559401,209.33,209.29,0.7]
[1756454807943,13.59559401,209.33,209.3,0.7]
[1756454808145,19.2118057,209.33,209.3,0.7]
[1756454808446,13.59559401,209.33,209.31,0.7]
[1756454808646,13.59559401,209.33,209.32,0.7]
[1756454808948,13.59559401,209.33,209.29,0.7]
[1756454809350,13.59559401,209.33,209.3,0.7]
[1756454811046,13.59559401,209.34,209.3,0.7]
[1756454811247,13.59559401,209.34,209.3,5.47780878]
[1756454811483,13.59559401,209.34,209.3,0.7]
[1756454811670,13.59559401,209.37,209.31,0.7]
[1756454811856,32.80739971,209.37,209.31,19.9118057]
[1756454812167,32.80739971,209.37,209.32,0.7]
[1756454812470,32.80739971,209.37,209.33,0.7]
[1756454812760,13.59559401,209.36,209.3,0.7]
[1756454813071,13.59559401,209.36,209.32,19.2118057]
[1756454813262,13.59559401,209.37,209.32,19.9118057]
[1756454814373,32.80739971,209.37,209.32,0.7]
[1756454814740,32.80739971,209.37,209.3,4.77761668]